bitfinex-derivatives/quotes_ETHF0:USTF0_20240907
["timestamp","ask_amount","ask_price","bid_price","bid_amount"]
[1725692453003,0.43869,2280.1,2279.8,0.43873]
[1725692454406,0.7423,2280.2,2279.8,0.43873]
[1725692454606,0.7423,2280.2,2279.7,3.03]
[1725692454806,0.7423,2280.2,2279.7,3.46875]
[1725692455214,0.7423,2280.2,2279.4,0.43881]
[1725692455215,0.43877,2279.7,2279.4,0.43881]
[1725692455403,0.395,2279.6,2279.5,3.4688]
[1725692455600,0.377,2280.0,2279.5,10.625]
[1725692455805,0.772,2280.0,2279.8,0.43873]
[1725692456228,0.772,2280.0,2279.7,0.43875]
[1725692456229,1.2107,2280.0,2279.7,0.43875]
[1725692456402,1.2107,2280.0,2279.5,8.15613372]
[1725692456403,0.772,2280.0,2279.6,1.69389077]
[1725692456610,0.772,2280.0,2279.8,0.43873]
[1725692457414,1.2107,2280.0,2279.8,0.43873]
[1725692457609,1.2107,2280.0,2279.7,3.46875]
[1725692457807,0.772,2280.0,2279.7,3.03]
[1725692458007,0.772,2280.0,2279.8,0.43873]
[1725692458407,0.772,2280.0,2279.9,0.43872]
[1725692459012,0.772,2280.0,2279.7,3.03]
[1725692459415,0.772,2280.0,2279.9,0.43872]
[1725692459915,0.772,2280.0,2279.8,0.43873]
[1725692460517,0.772,2280.0,2279.9,0.43872]
[1725692465329,0.772,2280.0,2279.8,0.43873]
[1725692465822,0.772,2280.0,2279.9,0.43872]
[1725692466527,7.3178,2280.5,2279.9,23.36034072]
[1725692466717,3.2078,2280.5,2280.3,0.43863]
[1725692466919,3.2078,2280.5,2280.4,0.43862]
[1725692467326,3.2078,2280.5,2280.4,4.82342]
[1725692467622,0.7652,2280.7,2280.6,0.43859]
[1725692467824,0.3866,2280.7,2280.6,0.43859]
[1725692468027,0.3866,2280.7,2280.6,4.82339]
[1725692468325,0.3866,2280.7,2280.6,4.3848]
[1725692468530,4.8493,2281.1,2280.6,4.3848]
[1725692468829,0.3866,2281.0,2280.8,0.43855]
[1725692469022,0.3866,2281.0,2280.8,0.43854]
[1725692469428,0.3866,2281.0,2280.9,0.43853]
[1725692469620,0.43844,2281.4,2280.9,3.03]
[1725692469621,0.3606,2281.4,2280.9,3.03]
[1725692469825,0.3606,2281.4,2281.3,3.03]
[1725692469826,0.7491,2281.4,2281.3,3.03]
[1725692470125,0.43845,2281.3,2280.9,3.03]
[1725692470316,0.79905,2281.3,2280.9,3.03]
[1725692470725,0.3606,2281.3,2280.9,3.03]
[1725692471632,0.3606,2281.3,2280.9,3.46852]
[1725692472026,0.3606,2281.3,2281.0,0.43851]
[1725692472529,0.3606,2281.3,2280.9,3.46852]
[1725692473118,3.2078,2281.6,2281.1,3.03]
[1725692473321,0.3818,2281.8,2281.3,6.2378]
[1725692473531,0.3818,2281.8,2281.5,0.43841]
[1725692474127,3.2078,2281.9,2281.3,6.2378]
[1725692474332,3.2078,2281.9,2281.6,0.43838]
[1725692474529,3.2078,2281.9,2281.7,0.43837]
[1725692474834,3.2078,2281.9,2281.6,0.43838]
[1725692475236,3.2078,2281.9,2281.7,0.43836]
[1725692476032,3.2078,2281.9,2281.6,3.46838]
[1725692476230,3.2078,2281.9,2281.3,6.2378]
[1725692476435,3.2078,2281.9,2281.3,0.43845]
[1725692476436,0.43836,2281.8,2281.3,0.43845]
[1725692476938,0.43836,2281.8,2281.3,3.46845]
[1725692477526,3.64615,2281.9,2281.4,0.43842]
[1725692477726,0.43836,2281.8,2281.4,0.43842]
[1725692477932,0.43836,2281.8,2281.3,3.46844]
[1725692478127,0.43838,2281.7,2281.3,3.03]
[1725692478335,0.7644,2281.6,2281.3,3.46845]
[1725692478531,1.1296,2281.6,2281.3,3.46845]
[1725692479029,1.1296,2281.6,2281.3,3.03]
[1725692479232,1.568,2281.6,2281.1,0.69820976]
[1725692479430,1.568,2281.6,2281.1,3.28972976]
[1725692479628,0.43842,2281.5,2281.1,3.03]
[1725692480031,4.3374,2281.6,2281.1,3.03]
[1725692480032,0.43844,2281.4,2281.1,3.03]
[1725692481237,0.43844001,2281.4,2281.1,3.03]
[1725692482434,1e-08,2281.4,2281.1,3.03]
[1725692482640,1e-08,2281.4,2281.3,3.46845]
[1725692483038,1e-08,2281.4,2281.3,7.85165]
[1725692483631,1e-08,2281.4,2281.3,13.85165]
[1725692485437,1e-08,2281.4,2281.3,7.85165]
[1725692490935,1e-08,2281.4,2281.1,3.28371033]
[1725692491139,1e-08,2281.4,2281.2,0.43847]
[1725692492236,1e-08,2281.4,2281.1,3.03]
[1725692492237,1e-08,2281.4,2281.3,0.43845]
[1725692492434,1e-08,2281.4,2281.3,3.46845]
[1725692492740,1e-08,2281.4,2281.3,7.85165]
[1725692493642,1e-08,2281.4,2281.3,3.46845]
[1725692495449,1e-08,2281.4,2281.1,3.03]
[1725692495751,0.394,2281.5,2281.2,0.43846]
[1725692495942,0.394,2281.5,2281.3,0.43845]
[1725692496341,0.394,2281.5,2281.2,0.43846]
[1725692496844,0.81291,2281.6,2281.2,3.2078]
[1725692496845,0.3745,2281.6,2281.2,3.2078]
[1725692497041,0.3745,2281.6,2281.5,0.43841]
[1725692499447,0.81125,2281.9,2281.3,3.03]
[1725692499746,0.3967,2281.7,2281.6,0.43839]
[1725692499940,0.3967,2281.7,2281.3,3.03]
[1725692500347,0.3967,2281.7,2281.4,0.43843]
[1725692500854,0.43842,2281.5,2281.2,3.2078]
[1725692501043,0.7479,2281.4,2281.1,3.03]
[1725692501353,0.7479,2281.4,2281.2,0.43846]
[1725692502450,0.7479,2281.4,2281.1,3.03]
[1725692502647,0.7479,2281.4,2281.2,0.43846]
[1725692504446,0.7479,2281.4,2281.3,0.43845]
[1725692505753,0.7479,2281.4,2281.2,0.43846]
[1725692506144,0.7479,2281.4,2281.3,0.43845]
[1725692506750,0.3741,2281.4,2281.3,0.43845]
[1725692507448,0.83507,2281.7,2281.4,0.43842]
[1725692507646,0.7739,2281.7,2281.3,3.2078]
[1725692507849,0.7739,2281.7,2281.4,0.43842]
[1725692508156,0.7739,2281.7,2281.5,0.43841]
[1725692508354,0.7739,2281.7,2281.4,0.43842]
[1725692508749,0.7739,2281.7,2281.5,0.43841]
[1725692509251,0.7739,2281.7,2281.4,0.43842]
[1725692509549,0.4384,2281.6,2281.3,1.130049]
[1725692510058,0.4384,2281.6,2281.3,1.568499]
[1725692510250,0.4384,2281.6,2281.3,0.43845]
[1725692510754,0.4384,2281.6,2281.3,1.568499]
[1725692511451,3.9817,2281.7,2281.4,3.32320087]
[1725692511753,0.43841,2281.5,2281.4,1.130049]
[1725692511949,0.43841,2281.6,2281.4,1.130049]
[1725692512656,0.43841,2281.6,2281.5,1.130049]
[1725692512956,0.43839,2281.6,2281.5,3.32612195]
[1725692513147,0.43839,2281.6,2281.5,1.13316502]
[1725692513553,0.43839,2281.6,2281.5,3.89235269]
[1725692514056,1.21228,2281.7,2281.5,3.89235269]
[1725692514249,1.21228,2281.7,2281.6,1.13402341]
[1725692514446,0.7739,2281.7,2281.6,3.32712011]
[1725692514859,0.7739,2281.7,2281.6,3.32758173]
[1725692515156,0.7739,2281.7,2281.6,3.8923209]
[1725692516349,0.7739,2281.7,2281.6,9.60855523]
[1725692516548,0.7739,2281.7,2281.6,8.84827779]
[1725692517856,0.7739,2281.7,2281.6,9.85563871]
[1725692518153,0.7739,2281.7,2281.6,6.57855523]
[1725692518352,4.30349,2282.3,2281.6,6.57855523]
[1725692518557,0.3659,2281.9,2281.7,9.28760714]
[1725692518854,0.3659,2281.9,2281.8,2.1930967]
[1725692519259,0.7554,2281.9,2281.8,2.1930967]
[1725692519653,0.3659,2281.9,2281.8,2.1930967]
[1725692520050,0.3659,2281.9,2281.8,3.89562336]
[1725692520251,0.3659,2281.9,2281.8,1.70253956]
[1725692520453,0.3659,2281.9,2281.8,3.89522083]
[1725692521457,0.3659,2281.9,2281.8,2.19268127]
[1725692521762,5.18664,2281.9,2281.8,3.32787601]
[1725692522456,5.18664,2281.9,2281.8,1.13519474]
[1725692522859,0.80424,2281.9,2281.8,3.89543311]
[1725692523064,0.80424,2281.9,2281.8,3.32788652]
[1725692523257,5.18664,2281.9,2281.8,3.32788652]
[1725692523464,0.80424,2281.9,2281.8,1.13498451]
[1725692523854,0.80424,2281.9,2281.8,1.57334451]
[1725692523855,0.3659,2281.9,2281.8,1.57334451]
[1725692524062,0.3659,2281.9,2281.8,7.93169754]
[1725692524257,0.80424,2281.9,2281.8,6.92456201]
[1725692524456,0.3659,2281.9,2281.8,7.49333754]
[1725692525566,0.3659,2281.9,2281.8,3.89378462]
[1725692525757,0.80424,2281.9,2281.8,3.89378462]
[1725692526063,5.18664,2281.9,2281.8,3.32689286]
[1725692526763,5.18664,2281.9,2281.8,1.13394304]
[1725692526963,5.18664,2281.9,2281.8,3.32686012]
[1725692527968,0.3659,2281.9,2281.8,7.36211188]
[1725692528162,0.3659,2281.9,2281.8,12.31706849]
[1725692528363,0.3659,2281.9,2281.8,12.31360139]
[1725692528561,0.3659,2281.9,2281.8,7.41523279]
[1725692528767,0.3659,2281.9,2281.8,8.84497096]
[1725692528965,0.80424,2281.9,2281.8,2.19261639]
[1725692529163,5.18664,2281.9,2281.8,3.89329112]
[1725692530568,5.18664,2281.9,2281.8,3.32635926]
[1725692531066,0.3659,2281.9,2281.8,3.89329112]
[1725692531465,5.18664,2281.9,2281.8,3.89329112]
[1725692532471,5.18664,2281.9,2281.8,3.32626976]
[1725692532969,5.18664,2281.9,2281.8,1.13365337]
[1725692533172,0.80424,2281.9,2281.8,1.13365337]
[1725692533669,0.80424,2281.9,2281.8,3.32657966]
[1725692533871,0.80424,2281.9,2281.8,1.13365337]
[1725692534571,5.18664,2281.9,2281.8,1.13365337]
[1725692534869,4.3824,2281.8,2281.2,1.0480281]
[1725692535069,4.3824,2281.8,2280.6,6.43643217]
[1725692535070,0.43849,2281.2,2280.9,2.26712178]
[1725692535369,0.43848,2281.2,2281.0,2.19355699]
[1725692535569,0.43848,2281.2,2281.1,2.19355699]
[1725692535868,4.82248,2281.2,2280.8,5.29712178]
[1725692536072,3.64631,2281.0,2280.9,2.19361777]
[1725692536266,3.2078,2281.0,2280.6,2.26712178]
[1725692536575,7.5926,2281.0,2280.5,2.26712178]
[1725692536867,3.2078,2280.7,2280.6,2.19393748]
[1725692537069,7.5926,2280.7,2280.6,2.19393748]
[1725692537276,7.5926,2280.7,2280.4,8.51816672]
[1725692537576,0.43859,2280.6,2280.2,2.26712178]
[1725692537873,0.43844,2281.4,2280.8,0.43854]
[1725692538078,1.1256,2281.5,2281.0,3.03]
[1725692538276,3.2078,2281.9,2281.3,3.03]
[1725692538473,1.09546,2282.7,2281.1,5.40119002]
[1725692538474,0.7661,2281.8,2281.5,3.03]
[1725692538670,0.7661,2281.8,2281.5,3.84781]
[1725692538873,0.7661,2281.8,2281.5,3.4094]
[1725692539272,0.7661,2281.8,2281.6,2.19279206]
[1725692539473,0.7661,2281.8,2281.5,3.4094]
[1725692539670,0.7661,2281.8,2281.6,2.19288471]
[1725692539975,0.3595,2282.0,2281.4,2.27050549]
[1725692540172,0.3738,2281.7,2281.5,2.19288128]
[1725692540372,0.3738,2281.7,2281.4,2.64580549]
[1725692540573,0.3738,2281.7,2281.5,2.19289776]
[1725692540878,0.3738,2281.7,2281.4,0.3753]
[1725692541074,0.82425,2281.9,2281.5,2.1929603]
[1725692541287,0.82425,2281.9,2281.4,0.3753]
[1725692541574,0.82425,2281.9,2281.5,2.19294338]
[1725692541779,0.3859,2281.9,2281.4,3.08423549]
[1725692541981,0.82424,2281.9,2281.5,2.19290696]
[1725692542175,0.3859,2281.9,2281.5,0.43841]
[1725692542373,0.3859,2281.9,2281.6,2.6310875]
[1725692542572,0.3859,2281.9,2281.7,0.3598]
[1725692543074,0.359,2282.3,2281.8,0.3751]
[1725692543380,0.3719,2282.1,2281.8,0.3751]
[1725692544285,0.7598,2282.1,2281.8,0.3751]
[1725692545581,0.7598,2282.1,2281.4,6.04593186]
[1725692545582,0.43838,2281.7,2281.4,2.27050549]
[1725692545780,0.7497,2281.6,2281.3,3.3889]
[1725692546085,1.5782,2281.6,2281.3,3.3889]
[1725692546981,1.1398,2281.6,2281.3,3.3889]
[1725692547187,0.43842,2281.5,2281.3,3.03]
[1725692547481,0.43843,2281.4,2281.3,3.03]
[1725692548284,0.43846,2281.3,2281.1,0.3589]
[1725692548480,0.43847,2281.3,2281.1,0.3589]
[1725692549174,0.43849,2281.1,2280.8,5.30050549]
[1725692549373,0.43849,2281.1,2280.9,2.19346582]
[1725692549578,0.43849,2281.1,2280.8,3.3926]
[1725692549782,0.43849,2281.1,2280.9,2.19344384]
[1725692549983,0.43848,2281.2,2281.0,2.19333679]
[1725692550177,0.43848,2281.2,2280.8,6.10165549]
[1725692550377,0.43848,2281.2,2280.9,2.19352411]
[1725692550583,0.43848,2281.2,2280.8,6.10165549]
[1725692550783,0.43848,2281.2,2280.9,2.19352707]
[1725692550985,0.43848,2281.2,2280.8,6.10165549]
[1725692551179,0.43845,2281.4,2280.9,2.19352026]
[1725692551384,0.43845,2281.4,2281.0,2.19352026]
[1725692551589,0.43845,2281.3,2280.9,2.70901549]
[1725692551886,0.43844,2281.4,2281.0,2.19327548]
[1725692552081,0.43844,2281.4,2280.9,2.70901549]
[1725692552277,0.43844,2281.4,2281.0,2.1932626]
[1725692552471,0.43844,2281.4,2280.9,0.43851]
[1725692552678,0.43844,2281.4,2281.0,2.63176117]
[1725692552880,0.43844,2281.4,2281.0,0.4385]
[1725692553085,0.43845,2281.3,2281.1,3.03]
[1725692553991,0.43847,2281.2,2281.1,3.03]
[1725692554178,0.82157,2281.2,2281.1,3.03]
[1725692554883,0.82157,2281.2,2280.8,0.3626]
[1725692554884,0.4385,2281.1,2280.8,0.3626]
[1725692555083,0.3787,2281.1,2280.8,3.83115]
[1725692555483,0.3831,2281.2,2280.9,2.19341801]
[1725692555676,0.43849,2281.1,2280.8,3.3926]
[1725692555980,3.5909,2281.2,2280.8,3.3926]
[1725692556179,0.43851,2281.1,2280.8,3.3926]
[1725692556891,0.3831,2281.2,2280.4,10.25548518]
[1725692556892,3.2078,2280.9,2280.4,10.25548518]
[1725692557186,0.43859,2280.6,2280.4,7.98497969]
[1725692557490,0.4386,2280.6,2280.4,7.98497969]
[1725692557681,0.4386,2280.5,2280.4,7.98497969]
[1725692557882,0.4386,2280.6,2280.4,7.98497969]
[1725692558186,0.4386,2280.6,2280.1,0.3728]
[1725692558187,0.43861,2280.5,2280.1,0.3728]
[1725692558388,4.3848,2280.6,2279.8,3.03]
[1725692558389,0.43867,2280.2,2279.8,3.03]
[1725692559485,0.43865,2280.3,2279.8,3.03]
[1725692559882,3.5693,2280.4,2279.8,3.03]
[1725692560083,0.43867,2280.2,2279.8,3.03]
[1725692561385,0.3774,2280.3,2279.8,3.03]
[1725692561580,0.3872,2280.2,2279.8,3.03]
[1725692562085,0.43869,2280.1,2279.8,3.03]
[1725692562390,0.82587,2280.2,2279.8,3.03]
[1725692562593,0.3872,2280.2,2279.8,3.03]
[1725692562781,0.81606,2280.3,2279.8,3.03]
[1725692562986,0.3774,2280.3,2279.8,3.46873]
[1725692563185,0.3774,2280.3,2279.8,3.82663]
[1725692563487,0.81605,2280.3,2279.8,3.82663]
[1725692563880,0.43866,2280.2,2279.8,3.3879]
[1725692564087,0.3774,2280.3,2279.8,3.03]
[1725692564289,0.43871,2280.0,2279.7,3.2078]
[1725692565699,3.5719,2280.1,2279.7,3.2078]
[1725692565897,3.5719,2280.1,2279.6,3.4028]
[1725692566086,3.2078,2279.8,2279.4,3.03]
[1725692566399,0.43879,2279.6,2279.2,3.03]
[1725692566894,0.7439,2279.7,2279.2,3.46885]
[1725692566895,1.18267,2279.7,2279.2,3.46885]
[1725692567598,0.43879,2279.6,2279.2,3.03]
[1725692567900,0.43879,2279.6,2279.2,3.46885]
[1725692568294,0.43879,2279.6,2279.2,3.03]
[1725692568597,3.64659,2279.6,2279.2,3.03]
[1725692569097,0.4388,2279.5,2279.2,3.03]
[1725692570293,3.5744,2279.6,2279.2,3.46885]
[1725692570294,4.01318,2279.6,2279.2,3.46885]
[1725692570708,0.4388,2279.5,2279.2,3.03]
[1725692571897,3.2078,2279.3,2278.8,6.2378]
[1725692572092,3.2078,2279.0,2278.5,3.64678]
[1725692572296,3.64671,2279.0,2278.5,3.2078]
[1725692572501,0.43892,2278.9,2278.5,3.64678]
[1725692572899,0.43894,2278.8,2278.4,3.469]
[1725692573191,0.43896,2278.7,2278.4,3.03]
[1725692573801,0.43896,2278.7,2278.3,0.3735]
[1725692573990,0.43897,2278.6,2278.3,0.3735]
[1725692574189,3.2078,2278.4,2278.0,3.2078]
[1725692574393,3.64682,2278.4,2277.8,3.84962]
[1725692574598,3.2078,2278.4,2277.8,3.4105]
[1725692574801,3.64682,2278.4,2277.8,3.84962]
[1725692575095,3.2078,2278.4,2277.8,3.4105]
[1725692575298,3.64682,2278.4,2277.8,3.84962]
[1725692576298,0.43903,2278.3,2277.8,3.4105]
[1725692576503,3.2078,2278.4,2277.7,3.03]
[1725692576800,0.43909,2278.0,2277.7,3.03]
[1725692577208,1.18999,2278.0,2277.7,3.03]
[1725692578001,0.3735,2278.0,2277.7,3.03]
[1725692579802,0.3729,2277.9,2277.5,0.81267]
[1725692581301,3.2078,2278.1,2277.7,3.03]
[1725692581508,3.2078,2278.1,2277.9,3.46909]
[1725692582201,3.2078,2278.1,2277.9,3.03]
[1725692582806,4.11,2278.3,2277.9,3.03]
[1725692583096,4.54903,2278.3,2277.9,3.03]
[1725692583296,4.11,2278.3,2278.0,0.43908]
[1725692583510,4.01991,2278.4,2278.0,0.3931]
[1725692583701,0.43903,2278.3,2278.0,0.3931]
[1725692584806,4.01992,2278.4,2278.0,0.3931]
[1725692585195,4.01992,2278.4,2278.0,0.83219]
[1725692585399,4.01992,2278.4,2278.0,0.3931]
[1725692586311,4.01992,2278.4,2278.0,0.83218]
[1725692586312,3.5809,2278.4,2278.0,0.83218]
[1725692586501,3.5809,2278.4,2278.0,0.3931]
[1725692586800,3.2078,2278.4,2278.2,0.43903]
[1725692587307,3.2078,2278.4,2278.0,1.20278]
[1725692587505,3.2078,2278.4,2278.2,0.43904]
[1725692587903,3.2078,2278.4,2278.3,0.43903]
[1725692588703,0.83416,2278.7,2278.3,0.43903]
[1725692589709,0.3952,2278.7,2278.1,3.03]
[1725692589897,0.83416,2278.7,2278.3,0.43902]
[1725692590103,0.3952,2278.7,2278.1,3.46906]
[1725692590406,3.64679,2278.5,2278.1,3.46906]
[1725692590904,3.64679,2278.5,2278.1,0.43907]
[1725692591106,0.79882,2278.4,2278.0,0.7637]
[1725692591308,0.43904,2278.3,2278.0,0.3931]
[1725692591514,0.3885,2278.2,2278.0,0.3931]
[1725692592112,0.3885,2278.2,2278.0,0.83218]
[1725692592408,0.3885,2278.2,2278.0,0.3931]
[1725692593109,0.82755,2278.2,2278.0,0.3931]
[1725692593612,0.3885,2278.2,2278.0,0.3931]
[1725692594003,0.82755,2278.2,2278.0,0.3931]
[1725692594411,0.3885,2278.2,2278.0,0.3931]
[1725692595320,0.3885,2278.2,2278.0,0.83219]
[1725692595814,0.3885,2278.2,2278.1,0.43907]
[1725692596607,0.3885,2278.2,2278.0,0.83217]
[1725692597014,0.3885,2278.2,2278.1,0.43907]
[1725692597413,0.3885,2278.2,2278.0,0.83218]
[1725692597608,0.3885,2278.2,2278.1,0.43907]
[1725692598013,0.3885,2278.2,2278.0,0.83217]
[1725692598206,0.3885,2278.2,2278.1,0.43907]
[1725692600515,3.2078,2278.5,2278.2,0.43904]
[1725692600721,3.2078,2278.5,2278.1,0.83215]
[1725692600915,3.6468,2278.5,2278.1,0.83215]
[1725692601117,3.2078,2278.5,2278.2,0.43905]
[1725692601332,2.54896798,2278.5,2278.2,0.43905]
[1725692601528,0.43898,2278.6,2278.2,0.43905]
[1725692602025,0.43898,2278.6,2278.1,0.3931]
[1725692602026,0.43899,2278.5,2278.1,0.83215]
[1725692602213,0.43901,2278.4,2278.0,0.83218]
[1725692602408,3.6468,2278.5,2278.1,0.43906]
[1725692602813,0.43901,2278.4,2278.0,0.83217]
[1725692603020,0.43903,2278.3,2278.0,0.3931]
[1725692603325,0.3957,2278.2,2278.0,0.3931]
[1725692604420,0.83475,2278.2,2278.0,0.3931]
[1725692604619,0.3957,2278.2,2278.0,0.83218]
[1725692605422,0.3957,2278.2,2278.0,0.3931]
[1725692605423,0.83475,2278.2,2278.0,0.3931]
[1725692605821,0.4391,2278.0,2277.5,0.43917]
[1725692606021,3.2078,2277.8,2277.5,0.43916]
[1725692606321,0.3829,2277.9,2277.5,0.43917]
[1725692607123,0.82201,2277.9,2277.5,0.43917]
[1725692607312,0.82201,2277.9,2277.4,0.82599]
[1725692607623,0.82201,2277.9,2277.5,0.43917]
[1725692607824,0.3829,2277.9,2277.5,0.43917]
[1725692609416,0.82201,2277.9,2277.5,0.43917]
[1725692609621,0.3829,2277.9,2277.5,0.43917]
[1725692609823,0.82201,2277.9,2277.5,0.43917]
[1725692611023,0.3829,2277.9,2277.5,0.43917]
[1725692611723,0.82201,2277.9,2277.5,0.43917]
[1725692615025,0.43917,2277.6,2277.4,0.3868]
[1725692615222,6.6207,2277.9,2277.2,2.13104356]
[1725692615428,1.16808,2277.5,2277.2,1.69180356]
[1725692615627,1.16809,2277.5,2277.2,2.13103356]
[1725692615818,1.16809,2277.5,2277.2,0.43923]
[1725692616021,1.54979,2277.5,2277.1,2.49785356]
[1725692616217,1.54979,2277.5,2277.2,2.19709933]
[1725692616422,1.54979,2277.5,2277.2,1.69180356]
[1725692617017,1.54979,2277.5,2277.1,2.49785356]
[1725692617232,1.1106,2277.5,2277.2,3.88897988]
[1725692617534,0.43922,2277.3,2277.1,1.69180356]
[1725692617725,0.43922,2277.3,2277.2,2.19721654]
[1725692619129,0.43922,2277.3,2277.2,3.8890201]
[1725692619323,0.43922,2277.3,2277.2,3.8889873]
[1725692619526,4.83042,2277.3,2277.2,3.8889873]
[1725692619727,0.43924,2277.2,2277.1,1.69180356]
[1725692619924,0.43926,2277.1,2277.0,1.69180356]
[1725692620227,1.09825,2276.9,2276.6,1.69180356]
[1725692620431,0.43936,2276.6,2276.4,1.95965106]
[1725692620623,0.7678,2276.5,2276.4,1.95965106]
[1725692620828,0.7678,2276.5,2276.4,4.15761283]
[1725692621130,0.3757,2276.5,2276.4,0.43939]
[1725692621338,0.83143,2276.8,2276.4,0.3941]
[1725692621527,0.3757,2276.7,2276.4,0.3941]
[1725692621922,0.3757,2276.7,2276.5,0.43937]
[1725692622533,0.3757,2276.7,2276.4,0.43939]
[1725692622724,0.3757,2276.7,2276.4,2.08590356]
[1725692623033,0.3757,2276.7,2276.5,0.43937]
[1725692623739,0.3757,2276.7,2276.5,0.43938]
[1725692623923,0.3757,2276.7,2276.6,0.43936]
[1725692624130,0.3757,2276.7,2276.5,0.43937]
[1725692624330,0.3757,2276.7,2276.4,0.83348]
[1725692624630,0.81504,2276.7,2276.4,0.3941]
[1725692625227,0.3757,2276.7,2276.3,1.69180356]
[1725692625426,0.43936,2276.6,2276.2,3.1331497]
[1725692625631,0.43936,2276.6,2276.3,2.19780303]
[1725692625832,0.3757,2276.7,2276.2,0.7316]
[1725692626138,1.09842,2276.6,2276.1,1.69180356]
[1725692626336,0.43942,2276.3,2276.0,2.04970356]
[1725692626634,0.3596,2276.2,2276.0,2.75971283]
[1725692626830,0.83291,2276.4,2276.0,2.75971283]
[1725692627038,0.83291,2276.4,2276.0,1.06790927]
[1725692627336,0.8329,2276.4,2276.0,1.06790927]
[1725692627541,0.3935,2276.4,2276.2,0.43943]
[1725692627741,0.3935,2276.4,2276.1,0.43944]
[1725692627943,0.3935,2276.4,2276.2,0.3708]
[1725692628441,0.3707,2276.5,2276.2,0.3708]
[1725692628744,0.83284,2276.7,2276.4,0.43939]
[1725692628942,0.83284,2276.7,2276.3,0.4394]
[1725692629440,0.83284,2276.7,2276.4,0.3943]
[1725692629641,0.43937,2276.6,2276.4,0.3943]
[1725692630140,0.81457,2276.6,2276.4,0.3943]
[1725692630541,0.43938,2276.5,2276.4,0.3943]
[1725692630737,0.43938,2276.5,2276.0,3.47833927]
[1725692630738,0.3752,2276.6,2276.0,3.47833927]
[1725692630943,0.3752,2276.6,2276.1,0.43945]
[1725692630944,0.43939,2276.5,2276.1,0.43945]
[1725692631443,0.43939,2276.5,2276.2,0.43943]
[1725692631737,0.81456,2276.6,2276.2,0.43943]
[1725692632339,0.3752,2276.6,2276.3,0.4394]
[1725692632544,0.81456,2276.6,2276.3,0.4394]
[1725692632947,0.81457,2276.6,2276.2,0.43942]
[1725692633642,0.81457,2276.6,2276.3,0.43941]
[1725692633844,0.81457,2276.6,2276.4,0.3807]
[1725692634044,0.43938,2276.5,2276.0,3.2078]
[1725692634245,0.43938,2276.5,2276.1,0.82014]
[1725692636243,7.33613,2276.8,2276.2,0.43943]
[1725692636445,1.19858,2276.5,2276.1,0.82014]
[1725692636644,1.19859,2276.5,2276.1,0.82015]
[1725692636842,4.40639,2276.5,2276.1,0.82015]
[1725692637243,0.7592,2276.5,2276.2,0.43943]
[1725692637944,1.19858,2276.5,2276.1,0.82014]
[1725692638338,0.43941,2276.4,2276.0,3.64726]
[1725692638539,0.43941,2276.4,2276.0,3.2078]
[1725692638540,0.83601,2276.4,2276.0,3.2078]
[1725692638744,0.3966,2276.4,2276.0,3.64727]
[1725692638947,3.967,2276.5,2276.2,0.43942]
[1725692639146,3.967,2276.5,2276.3,0.392]
[1725692640038,3.967,2276.5,2276.0,3.2078]
[1725692640344,3.967,2276.5,2275.9,0.392]
[1725692640545,0.43943,2276.3,2275.9,0.392]
[1725692640937,0.43948,2276.0,2275.4,2.05840356]
[1725692641146,0.43948,2276.0,2275.5,1.20035]
[1725692641447,0.7642,2275.9,2275.5,1.20035]
[1725692641649,0.7642,2275.9,2275.6,0.43955]
[1725692643049,0.7642,2275.9,2275.5,4.40816]
[1725692643252,4.11,2276.3,2275.8,3.2078]
[1725692643456,4.11,2276.3,2276.0,0.43946]
[1725692643653,4.3324,2276.5,2275.9,0.3717]
[1725692643951,0.7403,2276.5,2276.2,0.43942]
[1725692644143,0.43934,2276.7,2276.3,0.81111]
[1725692644341,8.30981463,2277.1,2276.9,0.4393]
[1725692644342,7.3178,2277.1,2276.9,0.4393]
[1725692644539,0.43918,2277.5,2276.9,0.43929]
[1725692645140,7.3178,2277.6,2276.8,0.3693]
[1725692645141,7.75697,2277.6,2277.0,0.43928]
[1725692645342,7.75697,2277.6,2276.9,0.43929]
[1725692645343,0.43918,2277.5,2276.9,0.43929]
[1725692645542,0.4392,2277.4,2276.8,0.80861]
[1725692645751,0.3662,2277.3,2276.8,0.80861]
[1725692646643,0.3662,2277.3,2276.8,0.3693]
[1725692646850,0.7695,2277.2,2276.7,0.21462992]
[1725692647052,0.7695,2277.2,2276.6,0.43935]
[1725692647053,1.20875,2277.2,2276.6,0.43935]
[1725692647359,1.20875,2277.2,2276.7,0.22085139]
[1725692649254,1.20875,2277.2,2276.7,0.66018139]
[1725692649458,0.7695,2277.2,2276.7,0.43933]
[1725692649646,1.20875,2277.2,2276.6,0.43935]
[1725692650151,1.20875,2277.2,2276.7,0.22107909]
[1725692650354,0.43926,2277.1,2276.7,0.22107909]
[1725692650554,0.43928,2277.0,2276.5,1.18567]
[1725692650750,0.43927,2277.1,2276.5,1.4022005]
[1725692651349,0.43927,2277.1,2276.6,0.43935]
[1725692651853,0.7695,2277.2,2276.5,0.7463]
[1725692651854,0.43931,2276.9,2276.5,0.7463]
[1725692652056,3.7995,2277.2,2276.5,1.18567]
[1725692652057,0.3803,2276.8,2276.5,1.18567]
[1725692652653,0.3803,2276.8,2276.5,0.7463]
[1725692653956,0.43935,2276.7,2276.3,4.89960356]
[1725692654152,0.43935,2276.7,2276.1,2.13125356]
[1725692654153,0.43936,2276.6,2276.1,2.13125356]